Cogmind - Beta 13 @@@ ROGUE MODE // 2024.04.25 @ 00:06:55 Player: obieonecnolly Result: Destroyed by G-47 Trooper with Particle Gun Performance ------------- Evolutions (0) 0 Regions Visited (1) 200 Robots Destroyed (10) 50 Value Destroyed (198) 198 Prototype IDs (0) 0 Alien Tech Used (0) 0 Bonus (0) 0 TOTAL SCORE: 448 Bonus ------- None Cogmind --------- Core Integrity 0/250 Matter 300/300 Energy 100/100 System Corruption 1% Temperature Cool (9) Movement Core (200) Ox3 Location -10/Materials Parts ------- > --- POWER (1) -------- (None) > --- PROPULSION (2) --- Aluminum Leg > --- UTILITY (2) ------ Heat Sink Medium Storage Unit > --- WEAPON (2) ------- (None) > --- INVENTORY (10) --- Ion Engine Light Treads Wheel Wheel Compact Wheel Targeting Computer Light Assault Rifle Peak State ------------ > --- POWER ------------ Light Ion Engine > --- PROPULSION ------- Aluminum Leg Aluminum Leg > --- UTILITY ---------- Small Storage Unit Improved Terrain Scanner > --- WEAPON ----------- Small Laser Assault Rifle > --- INVENTORY -------- Light Ion Engine Light Treads Light Treads Wheel Compact Wheel Light Assault Rifle [Rating: 9] Favorites ----------- Power Light Ion Engine Engine Light Ion Engine Propulsion Aluminum Leg Treads Light Treads Leg Aluminum Leg Utility Medium Storage Unit Device Heat Sink Storage Medium Storage Unit Weapon Assault Rifle Energy Gun Small Laser Ballistic Gun Assault Rifle Special Weapon Mining Laser Build | -11 -10 ------- Run | Yrd Mat Slots Evolved . | . . Power . | . . Propulsion . | . . Utility . | . . Weapon . | . . Parts Attached 16 | 9 7 Power 2 | 1 1 Engine 2 | 1 1 Core . | . . Reactor . | . . Propulsion 5 | 2 3 Treads 1 | . 1 Leg 4 | 2 2 Wheel . | . . Hover . | . . Flight . | . . Utility 4 | 2 2 Device 2 | 1 1 Storage 2 | 1 1 Processor . | . . Hackware . | . . Protection . | . . Artifact . | . . Weapon 5 | 4 1 Energy Gun 2 | 1 1 Energy Cannon . | . . Ballistic Gun 2 | 2 . Ballistic Cannon . | . . Launcher . | . . Special Weapon 1 | 1 . Impact Weapon . | . . Slashing Weapon . | . . Piercing Weapon . | . . Special Melee Weapon . | . . Unidentified Prototypes . | . . Parts Lost 6 | . 6 Power 1 | . 1 Propulsion 2 | . 2 Utility 1 | . 1 Weapon 2 | . 2 Highest Loss Streak 3 | . 3 To Critical Strikes . | . . Average Slot Usage (%) 83 | . 83 Engine 8 | . 8 Treads 5 | . 5 Leg 22 | . 22 Device 12 | . 12 Storage 14 | . 14 Energy Gun 4 | . 4 Ballistic Gun 8 | . 8 Special Weapon 5 | . 5 Naked Turns . | . . Heaviest Build 17 | 12 17 Greatest Support 20 | 20 20 Greatest Overweight (x) . | . . Average Overweight (x) . | . . Largest Inventory Capacity 10 | 8 10 Average Capacity 9 | 7 9 Most Carried 8 | 8 8 Average Carried 7 | 5 7 Final Capacity 10 | 8 10 Final Carried 8 | 8 7 Class Distribution -------------------- 100% | Mutant Dominant Class ---------------- Mutant | -10/Materials Resources | -11 -10 ----------- Run | Yrd Mat Matter Collected 416 | 292 124 Remotely . | . . Salvage Created 233 | 98 135 Parts 17 | 10 7 Haulers Intercepted . | . . Recyclers Shooed 1 | 1 . Parts Field Recycled . | . . Retrieved Matter . | . . Parts Self-Destructed . | . . Prevented . | . . Kills | -11 -10 ------- Run | Yrd Mat Combat Hostiles Destroyed 5 | . 5 Melee 3 | . 3 Guns 2 | . 2 Classes Destroyed 4 | 3 1 Worker 1 | 1 . Tunneler 3 | 3 . Recycler 1 | 1 . Grunt 5 | . 5 Best Kill Streak 4 | 4 3 Combat Bots Only 3 | . 3 Max Kills in Single Turn 1 | 1 1 Gunslinging . | . . Exploded . | . . Melee 1 | . 1 Uniques/NPCs Destroyed . | . . Combat | -11 -10 -------- Run | Yrd Mat Hostile Shots Fired 111 | . 111 Missed 19 | . 19 Damage Taken 1025 | . 1025 Core 250 | . 250 Absorbed by Shields . | . . Core Remaining (%) 100 | 100 . Volleys Fired 41 | 16 25 Largest 2 | 2 2 Hottest 120 | 100 120 Shots Fired 67 | 25 42 Gun 56 | 18 38 Cannon . | . . Launcher . | . . Special 11 | 7 4 Kinetic 34 | 9 25 Thermal 33 | 16 17 Explosive . | . . Electromagnetic . | . . Robot Hit Streak 7 | 3 7 Robot Miss Streak 6 | 2 6 Penetration Max . | . . Secondary Targets . | . . Shots Hit Robots 37 | 12 25 Core Hits 13 | 6 7 Critical Kills . | . . Critical Parts Destroyed . | . . Critical Strikes . | . . Melee Attacks . | . . Impact . | . . Slashing . | . . Piercing . | . . Sneak Attacks . | . . Combat Hostiles . | . . Follow-up Attacks . | . . Damage Inflicted 604 | 164 440 Guns 479 | 116 363 Cannons . | . . Explosions . | . . Melee . | . . Ramming 29 | . 29 Kinetic 299 | 71 228 Thermal 276 | 93 183 Explosive . | . . Electromagnetic . | . . Impact . | . . Slashing . | . . Piercing . | . . Highest Corruption 1 | . 1 Average Corruption 1 | . 1 Corruption Purged . | . . Corruption Blocked . | . . Effects 1 | . 1 Data Loss (minor) 1 | . 1 Overload Shots . | . . Overflow Damage . | . . Projectiles . | . . Explosions . | . . Melee . | . . Knockbacks . | . . Impact . | . . Kinetic . | . . Secondary . | . . Self-Inflicted Damage . | . . Shots . | . . Rammed 12 | . 12 Targets Rammed 16 | . 16 Kicked 1 | . 1 Crushed 3 | . 3 Highest Temperature 210 | 60 210 Average Temperature 90 | 24 127 Received Heat Transfer 555 | . 555 Effects 2 | . 2 Interference 2 | . 2 Siege Activations . | . . Robots Corrupted . | . . Combat Hostiles . | . . Parts Fried . | . . Impact Corruptions . | . . Robots Melted . | . . Combat Hostiles . | . . Parts Melted . | . . Heat Transferred 600 | 200 400 Parts Sabotaged . | . . Parts Stolen . | . . Parts Stripped . | . . Power Chain Reactions . | . . Alert | -11 -10 ------- Run | Yrd Mat Peak Influence 85 | 25 85 Initial 16 | . 16 Average 31 | 11 36 Maximum Alert Level . | . . Low Security (%) 100 | 100 100 Level 1 . | . . Level 2 . | . . Level 3 . | . . Level 4 . | . . Level 5 . | . . High Security . | . . Max Security . | . . Squads Dispatched 3 | . 3 Investigation 2 | . 2 Extermination . | . . Reinforcement 1 | . 1 Assault . | . . Garrison . | . . Intercept . | . . Searches Triggered . | . . Construction Impeded . | . . Haulers Reinforced . | . . Active Scanning Responses . | . . Cargo Convoy Interrupts . | . . Stealth | -11 -10 --------- Run | Yrd Mat Distress Signals . | . . Communications Jammed . | . . Distress Signals . | . . Times Spotted 14 | . 14 Peak Tracking Total 3 | . 3 Tactical Retreats . | . . Traps | -11 -10 ------- Run | Yrd Mat Traps Triggered 2 | . 2 Indirectly . | . . Trap Hack Attempts . | . . Triggered . | . . Disarmed . | . . Reprogrammed . | . . Reused . | . . Traps Extracted . | . . Installed . | . . Triggered . | . . Machines | -11 -10 ---------- Run | Yrd Mat Machines Disabled . | . . Max in Single Turn . | . . Machines Repaired . | . . Machines Dismantled . | . . Machines Sabotaged . | . . Overloaded Fab Kills . | . . Hacking | -11 -10 --------- Run | Yrd Mat Machines Accessed 3 | . 3 Terminals 2 | . 2 Fabricators . | . . Repair Stations . | . . Recycling Units 1 | . 1 Scanalyzers . | . . Garrison Access . | . . Total Hacks 7 | . 7 Successful 5 | . 5 Failed 2 | . 2 Catastrophic . | . . Database Lockouts . | . . Manual . | . . Terminals 4 | . 4 Fabricators . | . . Repair Stations . | . . Recycling Units 3 | . 3 Scanalyzers . | . . Garrison Access . | . . Terminal Hacks 2 | . 2 Record 1 | . 1 Zone Layout 1 | . 1 Fabricator Hacks . | . . Repair Station Hacks . | . . Recycling Unit Hacks 3 | . 3 Report Inventory 1 | . 1 Retrieve Matter 1 | . 1 Retrieve Components 1 | . 1 Scanalyzer . | . . Garrison Access Hacks . | . . Unauthorized Hacks . | . . Terminals . | . . Fabricators . | . . Repair Stations . | . . Recycling Units . | . . Scanalyzers . | . . Garrison Access . | . . Data Cores Recovered . | . . Used . | . . Hacking Detections 2 | . 2 Full Trace Events 1 | . 1 Feedback Events . | . . Feedback Blocked . | . . Robot Schematics Acquired . | . . Robots Built . | . . Authchips . | . . Time . | . . Total Robot Build Rating . | . . Part Schematics Acquired . | . . Parts Built . | . . Authchips . | . . Time . | . . Total Part Build Rating . | . . Parts Repaired . | . . Time . | . . Parts Recycled . | . . Recycled Matter . | . . Retrieved Matter . | . . Retrieved Components 3 | . 3 Parts Scanalyzed . | . . Part Schematics Acquired . | . . Parts Damaged . | . . Bothacking | -11 -10 ------------ Run | Yrd Mat Used RIF Installer . | . . Robots Hacked . | . . Non-combat . | . . Combat . | . . Robot Hacks Applied . | . . Relay Couplers Released . | . . Fabnet Peak Effective % . | . . Robots Rewired . | . . Allies Hacked . | . . Hacks Repelled . | . . Allies | -11 -10 -------- Run | Yrd Mat Total Allies . | . . Largest Group . | . . Highest-Rated Group . | . . Highest-Rated Ally . | . . Total Orders . | . . Ally Attacks . | . . Total Damage . | . . Kills . | . . Allies Corrupted . | . . Allies Melted . | . . Intel | -11 -10 ------- Run | Yrd Mat Robot Analysis Total . | . . Derelict Logs Recovered . | . . Drone Launches . | . . Drone Recoveries . | . . Exploration | -11 -10 ------------- Run | Yrd Mat Turns Passed 960 | 218 742 Spaces Moved 594 | 122 472 Core 5 | 5 . Treads 154 | . 154 Legs 435 | 117 318 Wheels . | . . Hover . | . . Flight . | . . Fastest Speed 50 | 50 120 Average Speed 129 | 117 133 Slowest Speed 160 | 120 160 Overloaded Moves . | . . Propulsion Burnouts . | . . Robots Hopped . | . . Cave-ins Triggered . | . . Exploration Rate (%) 33 | 7 59 Regions Visited 1 Branch Regions . Pre-discovered Areas . | . . Known Exits Taken . | . . Unknown Exits Taken 1 | 1 . Scrap Searched . | . . Spaces Dug 1 | 1 . Terrain Destroyed 2 | 1 1 Melee . | . . Projectile 2 | 1 1 AOE . | . . Terrain Rammed . | . . Walls Destroyed . | . . Machines Disabled . | . . Actions | -11 -10 --------- Run | Yrd Mat Total 683 | 154 529 Wait . | . . Move 593 | 121 472 Hop . | . . Pick Up 8 | 6 2 Fast Attach 10 | 9 1 Attach 3 | . 3 Detach 4 | 2 2 Swap 3 | . 3 Drop 5 | . 5 Fire 41 | 16 25 Melee . | . . Ram 2 | . 2 Kick 1 | . 1 Crush 13 | . 13 Escape Stasis . | . . Rewire . | . . Trap . | . . Miscellaneous . | . . Route ------- -11/Scrapyard -10/Materials (discovered 2 exits: [*Mat] / [Min]) History --------- Turn | Location | Event 5 | -11/Scrapyard | Discovered new exit (range 15) 219 | -11/Scrapyard | Entered Materials 315 | -10/Materials | Build established: Mutant 343 | -10/Materials | Discovered new exit (range 20) 663 | -10/Materials | Discovered new exit (range 15) 705 | -10/Materials | Core integrity fell below 50% 734 | -10/Materials | Lost 3 parts (1p1n1w) 803 | -10/Materials | Core integrity fell below 20% 819 | -10/Materials | Derelicts attacked the area 961 | -10/Materials | Destroyed by G-47 Trooper with Particle Gun Last Messages --------------- 00711_ Slammed into G-34 Mercenary. 00716_ Crushed G-34 Mercenary. 00716_ G-34 Mercenary destroyed. 00717_ Slammed into G-34 Mercenary. 00722_ Crushed G-34 Mercenary. 00722_ G-34 Mercenary destroyed. 00750_ Dropped Sml. Laser. 00802_ Triggered EMP Trap. 00802_ A bubble of electromagnetic force engulfs the area. 00806_ U-05 Engineer lays Concrete. 00819_ ALERT: Derelict incursion detected, rerouting patrols to target area. 00854_ System corrupted: Component data lost. 00862_ T-07 Excavator is excavating. 00878_ K-01 Serf collects debris. 00932_ T-07 Excavator is excavating. 00957_ Slammed into G-34 Mercenary. 00958_ Lgt. Treads destroyed. 00958_ Slammed into G-34 Mercenary. 00961_ T-07 Excavator is excavating. Map ----- +----------------------------------------------------+ | | | | | | | | | | | | | | | ?????????????????????????????????????????????????? | | ?????????????????????????????????????????????????? | | ?????????????????????????????????????????????????? | | ?????????????????????????????????????????????????? | | ?????????????????????????????? ??????????????????? | | ?????????????????????????????? ??????????????????? | | ?????????????????????????????#+##????????????????? | | ???????????????????????###### #????????????????? | | ???????????????????????# # #????????????????? | | ???????????????????????# + #????????????????? | | ???????????????????????# # #????????????????? | | ???????????????????????# # #????????????????? | | ???????????????????????# # #????????????????? | | ???????????????????????# # #????????????????? | | ???????????????????????# + #????????????????? | | ???????????????????????# # #????????????????? | | ???????????????????????# # #????????????????? | | ??????????????????# ####/## #????????????????? | | ??????????????????# g@g #????????????????? | | ??????????????? t g####### #????????????????? | | ???????????????#????????????# #????????????????? | | ???????????????????????????## ##???????????????? | | ???????????????????????????# #????????? ???? | | ???????????????????????????# #????????? #??? | | ???????????????????????????# #????????? #??? | | ???????????????????????????# #????????? #??? | | ???????????????????????????# #????????? #??? | | ???????????????????????????## ##????????# #??? | | ????????????????????????????# #?????????# #??? | | ????????????????????????????# #?????????# #??? | | ????????????????????????# #????????? #??? | | #?????????????# ##+#### #?????????# #??? | | #?????????????# #?????????# #??? | | #?????????????# #?????????# #??? | | #?????????????# #?????????# #??? | | # ##????????????# ##+###### #??######## #??? | | ####?????????#???????????# #### # #??? | | ??? # """ ## + + #??? | | ???? < # """ ####### """ # #??? | | ????? # """ #?????# """ # #??? | | ?????? ##+### #?????# """ # #??? | | # #??????####### # #?????# # #?#? | | # #????????????# ##?#####?????######## #??? | +----------------------------------------------------+ Best States ------------- Heat Dissipation 35 Energy Generation 10 Energy Capacity 125 Matter Stores 300 Matter Capacity 300 Sight Range 16 Terrain Scan Range 16 Terrain Scan Density 10 Evasion (%) 55 Recoil Reduction 1 Item Schematics ----------------- None Robot Schematics ------------------ None Fabricated ------------ Nothing Alien Tech Used ----------------- None Achievements -------------- None Challenges ------------ None Game ------ Seed ServoTrapProjector Manual? 0 Play Time 00:09:30 Cumulative 6.7 hours Start 2024.04.24 @ 23:59:33 End 2024.04.25 @ 00:06:55 Sessions 1 Manual Loads 0 Difficulty Rogue Special Mode None Game No. 12 Rogue 12 Adventurer 0 Explorer 0 Win Type - Total 0 Types 0/0/0/0/0/0/0/0/0 Lore% 5 Gallery% 11 Achievement% 10 Wizard Run 0 Options --------- Layout 0 ASCII 0 Keyboard 0 Movement Arrows Keybinds 0 Fullscreen 2 Font 18/SmallcapsGlow Map View 38x25 Zoom Use 100% Tactical HUD 1 Map Filters NONE Filters NONE Steam 1 RUN: f968fa06-3cae-46f2-943c-eec77a4977cb